Cogmind - Beta 13 @@@ ROGUE MODE // 2024.04.06 @ 18:50:01 Player: Lucas Result: Self-destructed Performance ------------- Evolutions (1) 500 Regions Visited (2) 400 Robots Destroyed (31) 155 Value Destroyed (673) 673 Prototype IDs (0) 0 Alien Tech Used (0) 0 Bonus (16) 16 TOTAL SCORE: 1744 Bonus ------- High Alert Combat Kills 16 Cogmind --------- Core Integrity 352/400 Matter 270/500 Energy 250/250 System Corruption 0% Temperature Cool (0) Movement Walking (120) Location -9/Materials Parts ------- > --- POWER (1) -------- Ion Engine > --- PROPULSION (3) --- Aluminum Leg Aluminum Leg Aluminum Leg > --- UTILITY (2) ------ High-capacity Matter Pod Shield Generator > --- WEAPON (3) ------- Medium Laser > --- INVENTORY (5) ---- Light Nuclear Core Medium Battery (150) EM Pulse Gun EM Pulse Gun Peak State ------------ > --- POWER ------------ Ion Engine > --- PROPULSION ------- Light Treads Light Treads > --- UTILITY ---------- High-capacity Matter Pod Shield Generator > --- WEAPON ----------- Grenade Launcher Grenade Launcher Grenade Launcher > --- INVENTORY -------- Light Nuclear Core Medium Battery EM Pulse Gun EM Pulse Gun Medium Laser [Rating: 9] Favorites ----------- Power Ion Engine Engine Ion Engine Propulsion Light Treads Treads Light Treads Leg Aluminum Leg Utility High-capacity Matter Pod Device Shield Generator Storage High-capacity Matter Pod Weapon Grenade Launcher Energy Gun EM Pulse Gun Launcher Grenade Launcher Build | -11 -10 -9 ------- Run | Yrd Mat Mat Slots Evolved 2 | . . 2 Power . | . . . Propulsion 1 | . . 1 Utility . | . . . Weapon 1 | . . 1 Parts Attached 23 | 7 9 7 Power 2 | 1 1 . Engine 2 | 1 1 . Core . | . . . Reactor . | . . . Propulsion 8 | 2 2 4 Treads 4 | 2 2 . Leg 4 | . . 4 Wheel . | . . . Hover . | . . . Flight . | . . . Utility 4 | 1 2 1 Device 1 | . . 1 Storage 3 | 1 2 . Processor . | . . . Hackware . | . . . Protection . | . . . Artifact . | . . . Weapon 9 | 3 4 2 Energy Gun 4 | 3 . 1 Energy Cannon . | . . . Ballistic Gun . | . . . Ballistic Cannon . | . . . Launcher 5 | . 4 1 Special Weapon . | . . . Impact Weapon . | . . . Slashing Weapon . | . . . Piercing Weapon . | . . . Special Melee Weapon . | . . . Unidentified Prototypes . | . . . Parts Lost 3 | . . 3 Power . | . . . Propulsion 1 | . . 1 Utility . | . . . Weapon 2 | . . 2 Highest Loss Streak 2 | . . 2 To Critical Strikes . | . . . Average Slot Usage (%) 89 | . 96 79 Engine 12 | . 13 11 Treads 22 | . 27 13 Leg 3 | . . 9 Device 3 | . . 10 Storage 20 | . 25 11 Energy Gun 8 | . 9 8 Launcher 16 | . 17 15 Naked Turns . | . . . Heaviest Build 23 | 14 20 23 Greatest Support 40 | 40 40 40 Greatest Overweight (x) 2 | . 2 1 Average Overweight (x) . | . . . Largest Inventory Capacity 8 | 8 8 8 Average Capacity 6 | 6 8 5 Most Carried 6 | 1 6 5 Average Carried 3 | . 3 4 Final Capacity 8 | 8 8 5 Final Carried 6 | 1 6 4 Class Distribution -------------------- 92% | Mutant 7% | Bomber Dominant Class ---------------- Mutant | -10/Materials Mutant | -9/Materials Resources | -11 -10 -9 ----------- Run | Yrd Mat Mat Matter Collected 615 | 114 125 376 Remotely . | . . . Salvage Created 685 | . 280 405 Parts 49 | . 30 19 Haulers Intercepted 2 | . . 2 Recyclers Shooed 3 | . 1 2 Parts Field Recycled . | . . . Retrieved Matter . | . . . Parts Self-Destructed . | . . . Prevented . | . . . Kills | -11 -10 -9 ------- Run | Yrd Mat Mat Combat Hostiles Destroyed 20 | . 11 9 Guns 7 | . 5 2 AOE 13 | . 6 7 Classes Destroyed 9 | . 5 4 Worker 1 | . . 1 Builder 3 | . 2 1 Hauler 2 | . . 2 Recycler 2 | . 1 1 Watcher 3 | . 2 1 Swarmer 6 | . 6 . Grunt 12 | . 5 7 Duelist 1 | . . 1 Sentry 1 | . . 1 Best Kill Streak 8 | . 8 6 Combat Bots Only 5 | . 5 3 Max Kills in Single Turn 3 | . 2 3 Gunslinging 1 | . 1 . Exploded 2 | . 2 2 Melee . | . . . Uniques/NPCs Destroyed . | . . . Combat | -11 -10 -9 -------- Run | Yrd Mat Mat Hostile Shots Fired 66 | . 36 30 Missed 23 | . 11 12 Damage Taken 466 | . 275 191 Core 104 | . 56 48 Absorbed by Shields 73 | . . 73 Core Remaining (%) 88 | 100 77 . Volleys Fired 47 | . 22 25 Largest 3 | . 2 3 Hottest 90 | . 80 90 Shots Fired 61 | . 32 29 Gun 36 | . 23 13 Cannon . | . . . Launcher 25 | . 9 16 Special . | . . . Kinetic . | . . . Thermal 13 | . . 13 Explosive 25 | . 9 16 Electromagnetic 23 | . 23 . Robot Hit Streak 6 | . 5 6 Robot Miss Streak 6 | . 6 2 Penetration Max . | . . . Secondary Targets 1 | . 1 . Max Gunslinging Chain 1 | . 1 . Shots Hit Robots 33 | . 11 22 Core Hits 45 | . 21 24 Critical Kills . | . . . Critical Parts Destroyed . | . . . Critical Strikes . | . . . Melee Attacks . | . . . Impact . | . . . Slashing . | . . . Piercing . | . . . Sneak Attacks . | . . . Combat Hostiles . | . . . Follow-up Attacks . | . . . Damage Inflicted 1809 | . 708 1101 Guns 241 | . 103 138 Cannons . | . . . Explosions 1553 | . 595 958 Melee . | . . . Ramming 15 | . 10 5 Kinetic . | . . . Thermal 160 | . 22 138 Explosive 1531 | . 573 958 Electromagnetic 103 | . 103 . Impact . | . . . Slashing . | . . . Piercing . | . . . Highest Corruption 2 | . 2 . Average Corruption 2 | . 2 . Corruption Purged . | . . . Corruption Blocked . | . . . Effects 3 | . 3 . Message Errors 1 | . 1 . Heat Flow Errors 2 | . 2 . Overload Shots . | . . . Overflow Damage 10 | . 7 3 Projectiles . | . . . Explosions 10 | . 7 3 Melee . | . . . Knockbacks . | . . . Impact . | . . . Kinetic . | . . . Secondary . | . . . Self-Inflicted Damage 83 | . 64 19 Shots 4 | . 2 2 Rammed 4 | . 3 1 Targets Rammed 7 | . 5 2 Kicked 1 | . . 1 Crushed 2 | . 2 . Highest Temperature 270 | . 270 48 Average Temperature 66 | . 100 16 Received Heat Transfer 76 | . 24 52 Siege Activations . | . . . Robots Corrupted . | . . . Combat Hostiles . | . . . Parts Fried . | . . . Impact Corruptions . | . . . Robots Melted . | . . . Combat Hostiles . | . . . Parts Melted . | . . . Heat Transferred 407 | . . 407 Parts Sabotaged . | . . . Parts Stolen . | . . . Parts Stripped . | . . . Power Chain Reactions 1 | . 1 . Alert | -11 -10 -9 ------- Run | Yrd Mat Mat Peak Influence 442 | . 300 442 Initial 98 | . . 98 Average 181 | . 164 270 Maximum Alert Level 2 | . 1 2 Low Security (%) 52 | 100 62 20 Level 1 44 | . 37 70 Level 2 2 | . . 8 Level 3 . | . . . Level 4 . | . . . Level 5 . | . . . High Security . | . . . Max Security . | . . . Squads Dispatched 2 | . 2 . Investigation . | . . . Extermination . | . . . Reinforcement 2 | . 2 . Assault . | . . . Garrison . | . . . Intercept . | . . . Searches Triggered . | . . . Construction Impeded . | . . . Haulers Reinforced . | . . . Active Scanning Responses . | . . . Cargo Convoy Interrupts . | . . . Stealth | -11 -10 -9 --------- Run | Yrd Mat Mat Distress Signals 3 | . 1 2 Communications Jammed . | . . . Distress Signals . | . . . Times Spotted 35 | . 20 15 Peak Tracking Total 5 | . 3 5 Tactical Retreats 1 | . 1 . Traps | -11 -10 -9 ------- Run | Yrd Mat Mat Traps Triggered 3 | . 3 . Indirectly . | . . . Trap Hack Attempts . | . . . Triggered . | . . . Disarmed . | . . . Reprogrammed . | . . . Reused . | . . . Traps Extracted . | . . . Installed . | . . . Triggered . | . . . Machines | -11 -10 -9 ---------- Run | Yrd Mat Mat Machines Disabled 2 | . . 2 Max in Single Turn 1 | . . 1 Machines Repaired . | . . . Machines Dismantled . | . . . Machines Sabotaged . | . . . Overloaded Fab Kills . | . . . Hacking | -11 -10 -9 --------- Run | Yrd Mat Mat Machines Accessed . | . . . Terminals . | . . . Fabricators . | . . . Repair Stations . | . . . Recycling Units . | . . . Scanalyzers . | . . . Garrison Access . | . . . Total Hacks . | . . . Successful . | . . . Failed . | . . . Catastrophic . | . . . Database Lockouts . | . . . Manual . | . . . Terminals . | . . . Fabricators . | . . . Repair Stations . | . . . Recycling Units . | . . . Scanalyzers . | . . . Garrison Access . | . . . Terminal Hacks . | . . . Fabricator Hacks . | . . . Repair Station Hacks . | . . . Recycling Unit Hacks . | . . . Scanalyzer . | . . . Garrison Access Hacks . | . . . Unauthorized Hacks . | . . . Terminals . | . . . Fabricators . | . . . Repair Stations . | . . . Recycling Units . | . . . Scanalyzers . | . . . Garrison Access . | . . . Data Cores Recovered . | . . . Used . | . . . Hacking Detections . | . . . Full Trace Events . | . . . Feedback Events . | . . . Feedback Blocked . | . . . Robot Schematics Acquired . | . . . Robots Built . | . . . Authchips . | . . . Time . | . . . Total Robot Build Rating . | . . . Part Schematics Acquired . | . . . Parts Built . | . . . Authchips . | . . . Time . | . . . Total Part Build Rating . | . . . Parts Repaired . | . . . Time . | . . . Parts Recycled . | . . . Recycled Matter . | . . . Retrieved Matter . | . . . Retrieved Components . | . . . Parts Scanalyzed . | . . . Part Schematics Acquired . | . . . Parts Damaged . | . . . Bothacking | -11 -10 -9 ------------ Run | Yrd Mat Mat Used RIF Installer . | . . . Robots Hacked . | . . . Non-combat . | . . . Combat . | . . . Robot Hacks Applied . | . . . Relay Couplers Released . | . . . Fabnet Peak Effective % . | . . . Robots Rewired . | . . . Allies Hacked . | . . . Hacks Repelled . | . . . Allies | -11 -10 -9 -------- Run | Yrd Mat Mat Total Allies . | . . . Largest Group . | . . . Highest-Rated Group . | . . . Highest-Rated Ally . | . . . Total Orders . | . . . Ally Attacks . | . . . Total Damage . | . . . Kills . | . . . Allies Corrupted . | . . . Allies Melted . | . . . Intel | -11 -10 -9 ------- Run | Yrd Mat Mat Robot Analysis Total . | . . . Derelict Logs Recovered . | . . . Drone Launches . | . . . Drone Recoveries . | . . . Exploration | -11 -10 -9 ------------- Run | Yrd Mat Mat Turns Passed 1078 | 116 607 355 Spaces Moved 618 | 83 330 205 Core 25 | 24 1 . Treads 481 | 59 329 93 Legs 112 | . . 112 Wheels . | . . . Hover . | . . . Flight . | . . . Fastest Speed 50 | 50 150 120 Average Speed 149 | 128 159 140 Slowest Speed 190 | 160 160 190 Overloaded Moves . | . . . Propulsion Burnouts . | . . . Robots Hopped . | . . . Cave-ins Triggered . | . . . Exploration Rate (%) 30 | 5 65 21 Regions Visited 2 Branch Regions . Pre-discovered Areas . | . . . Known Exits Taken . | . . . Unknown Exits Taken 2 | 1 1 . Scrap Searched . | . . . Spaces Dug . | . . . Terrain Destroyed 147 | . 62 85 Melee . | . . . Projectile . | . . . AOE 147 | . 62 85 Terrain Rammed . | . . . Walls Destroyed . | . . . Machines Disabled . | . . . Actions | -11 -10 -9 --------- Run | Yrd Mat Mat Total 704 | 90 372 242 Wait 1 | . 1 . Move 616 | 82 329 205 Hop . | . . . Pick Up 3 | . 3 . Fast Attach 18 | 7 8 3 Attach 4 | . 1 3 Detach 4 | 1 3 . Swap 1 | . . 1 Drop 3 | . . 3 Fire 47 | . 22 25 Melee . | . . . Ram . | . . . Kick 1 | . . 1 Crush 6 | . 5 1 Escape Stasis . | . . . Rewire . | . . . Trap . | . . . Miscellaneous . | . . . Route ------- -11/Scrapyard -10/Materials (discovered 4 exits: [*Mat x2] / [*Min x2]) -9/Materials (discovered 1 exit: [*Min]) History --------- Turn | Location | Event 18 | -11/Scrapyard | Discovered new exit (range 15) 117 | -11/Scrapyard | Entered Materials 218 | -10/Materials | Discovered new exit (range 15) 309 | -10/Materials | Build established: Mutant 409 | -10/Materials | Discovered new exit (range 11) 532 | -10/Materials | Discovered new exit (range 15) 672 | -10/Materials | Discovered new exit (range 15) 724 | -10/Materials | Entered another Materials area 724 | -9/Materials | Evolved 2 slots: Propulsion x1, Weapon x1 988 | -9/Materials | Discovered new exit (range 16) 1079 | -9/Materials | Self-destructed Last Messages --------------- 01060_ The unstable cave ceiling collapses. 01060_ K-01 Serf collects debris. 01060_ U-05 Engineer lays Concrete. 01060_ Acquired 41 matter. 01061_ U-05 Engineer lays Concrete. 01063_ K-01 Serf collects debris. 01066_ U-05 Engineer lays Concrete. 01066_ K-01 Serf collects debris. 01067_ Dropped Lgt. Treads. 01067_ U-05 Engineer lays Concrete. 01068_ Kicked K-01 Serf out of the way. 01069_ Acquired 37 matter. 01069_ U-05 Engineer lays Concrete. 01070_ K-01 Serf collects debris. 01071_ U-05 Engineer lays Concrete. 01073_ K-01 Serf collects debris. 01074_ U-05 Engineer builds a Wall. 01077_ The unstable cave ceiling collapses. 01077_ K-01 Serf collects debris. 01077_ U-05 Engineer lays Concrete. Map ----- +----------------------------------------------------+ | ????????????????????????????????????????# #? | | ????????????????????????????????????????# #? | | ????????????????????????????????????????# #? | | ????????????????????????????????????????# #? | | ????????????????????????????????????????# #? | | ????????????????????????????????????????# ## | | ?????????+??????????????????????????????# ## | | ????????? ?????????????????????????????## ## | | ????????? ????????????????????????????## ! # | | ????????? ???????????????????????????## # | | ????????? #??????????????????????????# # | | ????????# #???????????????????????????# # | | ######### #???????????????????????????# | | # ## #????#########???????????#######+### | | # ## #????# ???????????# # | | # ## #????# """ #??????????# # | | # [[[ ## #????# """ #??????????# # | | # [[ ## #????# """ #??????????# # | | # [[ ## ##???# #??????????# # | | # # ##### """ #??????????# # | | # + + """ #???????#### # | | # # ##### k""" #?####### # # | | # """ # #???# # #########/#### | | # """ # #?### ### [# # * | | # """ # #?# a [!%! u = ! | | # + #?# * =@ [ %= % [ [ | | ######## #?# # ## #[ ## ## ####### | | # # #?# # # !! #?????? | | # # ### # """ #?## !! #?????? | | # """ # # """ #??# [ #?????? | | # """ # # """ #??# #?????? | | # """ + # #??# """ #?????? | | # # # """ #??## """ """ #?????? | | ?####### ### # """ #???# """ """ #?????? | | ??????# ##### """ #???# #?????? | | ?????# #??# #???###########?????? | | ?????# #??##########???????????????????? | | ?????# < #???????????????????????????????? | | ?????# #???????????????????????????????? | | ?????#"" ""#???????????????????????????????? | | ?????##"|||"##???????????????????????????????? | | ??????##"""##????????????????????????????????? | | ???????#####?????????????????????????????????? | | ?????????????????????????????????????????????? | | ?????????????????????????????????????????????? | | | | | | | | | | | +----------------------------------------------------+ Best States ------------- Heat Dissipation 28 Energy Generation 10 Energy Capacity 400 Matter Stores 270 Matter Capacity 500 Sight Range 16 Terrain Scan Density 10 Evasion (%) 55 Recoil Reduction 2 Item Schematics ----------------- None Robot Schematics ------------------ None Fabricated ------------ Nothing Alien Tech Used ----------------- None Achievements -------------- None Challenges ------------ None Game ------ Seed StorageThunderInitializer Manual? 0 Play Time 00:12:33 Cumulative 5.4 hours Start 2024.04.06 @ 18:40:44 End 2024.04.06 @ 18:50:01 Sessions 1 Manual Loads 0 Difficulty Rogue Special Mode None Game No. 14 Rogue 11 Adventurer 3 Explorer 0 Win Type - Total 0 Types 0/0/0/0/0/0/0/0/0 Lore% 7 Gallery% 11 Achievement% 12 Wizard Run 0 Options --------- Layout 1 ASCII 0 Keyboard 1 Movement Numpad Keybinds 0 Fullscreen 1 Font 24/Smallcaps Map View 50x35 Zoom Use 0% Tactical HUD 1 Map Filters NONE Filters NONE Steam 1 RUN: 68ba83c2-9296-40cf-b237-6fa2955a3eb6